bitfinex/quotes_SOLUSD_20250429
["timestamp","ask_amount","ask_price","bid_price","bid_amount"]
[1745892433312,18.00732635,147.9,147.85,98.90732635]
[1745892433489,18.00732635,147.9,147.85,18.00732635]
[1745892433698,18.00732635,147.9,147.85,24.09452484]
[1745892434010,18.00732635,147.9,147.83,32.0876802]
[1745892434215,18.00732635,147.9,147.85,18.00732635]
[1745892434416,18.00732635,147.89,147.85,18.00732635]
[1745892434790,18.00732635,147.9,147.85,18.00732635]
[1745892435284,18.00732635,147.86,147.79,80.9]
[1745892435483,18.00732635,147.82,147.77,26.66974418]
[1745892435687,18.00732635,147.82,147.78,18.07032635]
[1745892436101,18.00732635,147.81,147.78,0.063]
[1745892436380,98.11897059,147.85,147.78,0.063]
[1745892436581,18.00732635,147.8,147.78,0.063]
[1745892438394,18.00732635,147.81,147.78,0.063]
[1745892439013,7.6204192,147.83,147.78,18.07032635]
[1745892439193,18.00732635,147.79,147.78,0.063]
[1745892439395,18.00732635,147.8,147.78,0.063]
[1745892440483,88.98859288,147.82,147.78,0.063]
[1745892440714,18.00732635,147.8,147.78,0.063]
[1745892440879,6.08859288,147.82,147.78,0.063]
[1745892441429,18.00732635,147.8,147.78,0.063]
[1745892441919,18.00732635,147.83,147.79,18.00732635]
[1745892442291,18.00732635,147.84,147.8,18.00732635]
[1745892442986,98.6946,147.87,147.82,18.00732635]
[1745892442987,21.88108023,147.87,147.82,18.00732635]
[1745892443182,39.88840658,147.87,147.82,18.00732635]
[1745892443598,82.9,147.9,147.85,18.00732635]
[1745892443795,18.00732635,147.89,147.85,18.00732635]
[1745892444000,18.00732635,147.88,147.84,18.00732635]
[1745892444410,24.09265509,147.9,147.85,18.00732635]
[1745892444713,18.00732635,147.89,147.85,18.00732635]
[1745892445018,18.00732635,147.88,147.82,6.0882103]
[1745892445201,18.00732635,147.89,147.85,18.00732635]
[1745892445694,24.09302857,147.89,147.85,18.00732635]
[1745892445894,24.09302857,147.89,147.84,18.00732635]
[1745892447315,6.08519759,147.9,147.85,18.00732635]
[1745892447490,18.00732635,147.89,147.85,18.00732635]
[1745892447690,18.00732635,147.88,147.84,18.00732635]
[1745892448121,6.08572033,147.89,147.8,14.2]
[1745892448284,82.9,147.88,147.83,18.00732635]
[1745892448500,18.00732635,147.87,147.83,18.00732635]
[1745892449231,6.08572033,147.89,147.85,18.00732635]
[1745892449232,18.00732635,147.89,147.85,18.00732635]
[1745892449603,82.9,147.9,147.86,18.00732635]
[1745892449926,18.00732635,147.9,147.86,18.00732635]
[1745892450132,18.00732635,147.89,147.85,18.00732635]
[1745892451430,6.08524134,147.9,147.85,24.0945012]
[1745892451734,24.09256769,147.9,147.86,18.00732635]
[1745892452403,24.09256769,147.9,147.84,18.00732635]
[1745892452404,18.00732635,147.88,147.84,18.00732635]
[1745892452612,18.00732635,147.88,147.83,6.0879461]
[1745892452822,18.00732635,147.88,147.84,18.00732635]
[1745892453430,6.08524134,147.9,147.84,24.09493455]
[1745892453610,18.00732635,147.89,147.85,18.00732635]
[1745892453811,18.00732635,147.89,147.82,6.08848599]
[1745892454033,18.00732635,147.89,147.85,18.00732635]
[1745892454832,84.5333,147.95,147.88,18.00732635]
[1745892455032,84.5333,147.95,147.89,18.00732635]
[1745892455518,18.00732635,147.93,147.89,18.00732635]
[1745892455715,6.08354738,147.94,147.89,18.00732635]
[1745892456023,18.00732635,147.93,147.89,18.00732635]
[1745892456221,24.09087373,147.94,147.87,6.08632177]
[1745892456422,18.00732635,147.93,147.89,18.00732635]
[1745892457326,24.09142975,147.93,147.89,18.00732635]
[1745892457529,6.0841034,147.93,147.9,18.00732635]
[1745892457716,32.31732635,147.96,147.92,18.00732635]
[1745892457921,32.31732635,147.96,147.91,18.00732635]
[1745892458435,18.00732635,147.95,147.91,18.00732635]
[1745892458817,0.03,147.96,147.94,18.00732635]
[1745892459142,18.00732635,147.95,147.87,98.90732635]
[1745892459339,21.31984146,147.96,147.87,98.90732635]
[1745892459340,18.00732635,147.91,147.87,98.90732635]
[1745892459661,18.00732635,147.9,147.87,80.9]
[1745892459825,18.00732635,147.91,147.87,18.00732635]
[1745892460006,18.00732635,147.9,147.86,24.16392635]
[1745892460206,18.00732635,147.9,147.86,18.00732635]
[1745892460724,18.00732635,147.91,147.87,18.00732635]
[1745892460943,6.08395862,147.93,147.88,18.00732635]
[1745892461238,20.36328142,147.95,147.91,18.00732635]
[1745892461532,24.12014199,147.96,147.92,18.00732635]
[1745892461939,18.00732635,147.95,147.91,18.00732635]
[1745892462530,24.0905114,147.95,147.91,18.00732635]
[1745892463453,6.08318505,147.95,147.88,18.00732635]
[1745892463749,0.03,147.96,147.93,18.00732635]
[1745892465250,0.03,147.96,147.94,18.00732635]
[1745892465625,0.03,147.96,147.92,6.08436644]
[1745892465936,0.03,147.96,147.93,18.00732635]
[1745892467040,0.03,147.96,147.91,6.08478128]
[1745892467231,0.03,147.96,147.93,18.00732635]
[1745892468254,18.00732635,147.94,147.88,80.9]
[1745892468543,18.00732635,147.91,147.86,44.56081414]
[1745892468745,18.00732635,147.92,147.87,18.00732635]
[1745892469122,18.00732635,147.92,147.87,24.09374119]
[1745892469739,24.09170394,147.92,147.87,24.09374119]
[1745892470838,24.09170394,147.92,147.87,18.00732635]
[1745892471238,24.09170394,147.92,147.87,24.09361052]
[1745892471544,24.09170394,147.92,147.88,18.00732635]
[1745892471745,6.08437759,147.92,147.88,18.00732635]
[1745892472427,100.90732635,147.95,147.87,6.08628417]
[1745892472635,100.90732635,147.95,147.9,18.00732635]
[1745892472822,6.08363991,147.94,147.9,18.00732635]
[1745892473336,6.08363991,147.94,147.91,18.00732635]
[1745892473640,6.08363991,147.94,147.9,18.00732635]
[1745892474841,18.00732635,147.92,147.86,20.4668]
[1745892475024,18.00732635,147.92,147.88,18.00732635]
[1745892475755,18.00732635,147.93,147.88,18.00732635]
[1745892475961,24.09155927,147.93,147.88,18.00732635]
[1745892477252,18.00732635,147.89,147.82,6.3992]
[1745892477443,18.00732635,147.86,147.8,14.243]
[1745892477646,18.00732635,147.85,147.81,18.00732635]
[1745892478238,24.09468659,147.85,147.81,18.00732635]
[1745892478547,24.09468659,147.85,147.84,0.063]
[1745892478754,6.08736024,147.85,147.84,0.063]
[1745892478953,6.08695613,147.86,147.84,0.063]
[1745892481651,24.09390405,147.87,147.84,0.063]
[1745892481858,18.00732635,147.91,147.86,18.00732635]
[1745892482044,18.00732635,147.9,147.85,18.00732635]
[1745892482231,18.00732635,147.89,147.85,18.00732635]
[1745892482854,139.94607818,147.92,147.85,18.00732635]
[1745892483058,6.08478128,147.91,147.86,18.00732635]
[1745892483267,18.00732635,147.89,147.84,0.063]
[1745892483563,18.00732635,147.87,147.84,0.063]
[1745892483858,18.00732635,147.88,147.84,0.063]
[1745892484062,18.00732635,147.87,147.84,0.063]
[1745892484268,18.00732635,147.86,147.84,0.063]
[1745892484560,18.00732635,147.87,147.84,0.063]
[1745892484860,18.00732635,147.88,147.84,18.07032635]
[1745892485262,24.09347488,147.88,147.84,18.07032635]
[1745892486148,82.9,147.89,147.85,18.00732635]
[1745892486361,18.00732635,147.9,147.86,18.00732635]
[1745892486656,18.00732635,147.9,147.85,18.00732635]
[1745892487049,6.08493561,147.91,147.86,18.00732635]
[1745892487250,18.00732635,147.93,147.88,18.00732635]
[1745892487759,18.00732635,147.93,147.85,12.70839441]
[1745892487760,106.99102758,147.94,147.9,18.00732635]
[1745892487940,6.08370123,147.94,147.91,18.00732635]
[1745892488538,6.08370123,147.94,147.9,18.00732635]
[1745892488734,24.09102758,147.94,147.9,18.00732635]
[1745892489464,18.00732635,147.93,147.89,18.00732635]
[1745892490961,24.09131344,147.93,147.89,18.00732635]
[1745892491469,6.08398709,147.93,147.89,18.00732635]
[1745892491646,24.09131344,147.93,147.89,18.00732635]
[1745892492563,18.00732635,147.92,147.86,6.0868389]
[1745892492760,18.00732635,147.89,147.85,18.00732635]
[1745892492965,18.00732635,147.88,147.84,0.063]
[1745892493271,18.00732635,147.89,147.84,18.07032635]
[1745892493785,100.90732635,147.92,147.88,18.00732635]
[1745892494070,18.00732635,147.91,147.87,18.00732635]
[1745892494671,24.09216555,147.91,147.87,18.00732635]
[1745892495168,18.00732635,147.91,147.87,18.00732635]
[1745892495565,14.18,147.94,147.89,18.00732635]
[1745892495745,32.18732635,147.94,147.89,18.00732635]
[1745892496149,32.18732635,147.94,147.86,6.08659873]
[1745892496467,32.18732635,147.94,147.89,18.00732635]
[1745892496766,32.18732635,147.94,147.84,114.18916771]
[1745892496970,18.00732635,147.93,147.89,18.00732635]
[1745892497587,18.00732635,147.92,147.85,6.08725059]
[1745892497749,18.00732635,147.92,147.88,18.00732635]
[1745892498249,82.9,147.93,147.9,18.00732635]
[1745892498871,88.98398569,147.93,147.9,18.00732635]
[1745892499073,106.99131204,147.93,147.89,18.00732635]
[1745892500952,18.00732635,147.91,147.84,80.963]
[1745892501278,18.00732635,147.91,147.87,18.00732635]
[1745892501478,18.00732635,147.92,147.88,18.00732635]
[1745892501660,24.09131204,147.93,147.88,18.00732635]
[1745892502071,18.00732635,147.92,147.85,6.3661]
[1745892502259,18.00732635,147.92,147.88,18.00732635]
[1745892502580,24.09193935,147.92,147.88,18.00732635]
[1745892503386,24.09193935,147.92,147.87,18.00732635]
[1745892504182,24.09193935,147.92,147.85,6.3661]
[1745892504481,18.00732635,147.89,147.85,18.00732635]
[1745892504858,18.00732635,147.9,147.85,18.00732635]
[1745892505675,18.00732635,147.89,147.84,0.063]
[1745892505876,21.29553782,147.92,147.86,18.00732635]
[1745892506087,106.99193935,147.92,147.88,18.00732635]
[1745892506286,88.984613,147.92,147.88,18.00732635]
[1745892508495,106.99193935,147.92,147.88,18.00732635]
[1745892510461,6.084613,147.92,147.88,18.00732635]
[1745892510658,18.00732635,147.89,147.84,80.963]
[1745892510991,18.00732635,147.89,147.85,18.00732635]
[1745892511564,18.00732635,147.89,147.84,18.07032635]
[1745892511865,82.9,147.91,147.84,18.07032635]
[1745892511866,82.9,147.91,147.85,18.00732635]
[1745892512096,18.00732635,147.9,147.85,18.00732635]
[1745892512389,18.00732635,147.89,147.85,18.00732635]
[1745892512795,24.09334203,147.88,147.84,0.063]
[1745892513089,6.08601568,147.88,147.84,0.063]
[1745892513389,18.00732635,147.87,147.84,0.063]
[1745892514574,18.00732635,147.85,147.84,0.063]
[1745892514772,24.09457694,147.85,147.84,0.063]
[1745892516484,6.08690319,147.86,147.84,0.063]
[1745892516697,88.98644187,147.87,147.84,18.07032635]
[1745892516999,6.08601568,147.88,147.84,18.07032635]
[1745892517288,18.00732635,147.85,147.84,0.063]
[1745892518498,82.9,147.87,147.84,0.063]
[1745892518700,18.00732635,147.85,147.84,0.063]
[1745892518990,24.09457694,147.85,147.84,0.063]
[1745892522781,6.08691916,147.86,147.84,0.063]
[1745892522987,6.08601568,147.88,147.84,18.07032635]
[1745892523292,6.08601568,147.88,147.84,0.063]
[1745892523495,18.00732635,147.85,147.84,0.063]
[1745892525289,24.09457694,147.85,147.84,0.063]
[1745892526390,24.09457694,147.85,147.79,0.063]
[1745892526391,26.0,147.83,147.79,0.063]
[1745892526573,18.00732635,147.8,147.79,0.063]
[1745892528286,24.09663622,147.8,147.79,0.063]
[1745892530973,6.08930987,147.8,147.79,0.063]
[1745892531178,24.09663622,147.8,147.79,0.063]
[1745892535597,6.08904506,147.81,147.79,0.063]
[1745892536702,24.09637141,147.81,147.79,0.063]
[1745892537494,18.00732635,147.8,147.79,0.063]
[1745892539417,24.09663622,147.8,147.79,0.063]
[1745892539792,6.08930987,147.8,147.79,0.063]
[1745892539997,24.09663622,147.8,147.79,0.063]
[1745892540511,18.00732635,147.8,147.79,0.063]
[1745892541216,6.0888979,147.81,147.79,0.063]
[1745892541402,6.08864158,147.82,147.79,0.063]
[1745892541604,24.09596793,147.82,147.79,0.063]
[1745892542314,24.09663622,147.8,147.79,0.063]
[1745892542688,6.08930987,147.8,147.79,0.063]
[1745892543615,24.09663622,147.8,147.79,0.063]
[1745892546215,6.08930987,147.8,147.79,0.063]
[1745892546424,82.9,147.83,147.79,18.07032635]
[1745892546714,6.08857461,147.82,147.79,0.063]
[1745892547084,24.09590096,147.82,147.79,0.063]
[1745892547712,18.00732635,147.81,147.79,0.063]
[1745892547916,6.08857461,147.82,147.79,0.063]
[1745892548218,24.09590096,147.82,147.79,0.063]
[1745892549425,6.08857461,147.82,147.79,0.063]
[1745892550209,24.09590096,147.82,147.79,0.063]
[1745892550508,6.08857461,147.82,147.79,0.063]
[1745892556023,17.37517212,147.82,147.79,0.063]
[1745892557511,11.28659751,147.81,147.79,0.063]
[1745892558912,88.98857461,147.82,147.79,0.063]
[1745892558913,36.02555624,147.8,147.79,0.063]
[1745892559622,17.37590738,147.8,147.79,0.063]
[1745892560339,17.3750835,147.82,147.79,0.063]
[1745892562028,17.3750835,147.82,147.79,11.34959751]
[1745892562029,6.08848599,147.82,147.79,11.34959751]
[1745892562234,6.08848599,147.82,147.79,0.063]
[1745892563027,17.3750835,147.82,147.79,0.063]
[1745892563246,6.08848599,147.82,147.79,0.063]
[1745892563404,6.08848599,147.82,147.79,11.34959751]
[1745892563733,6.08848599,147.82,147.79,0.063]
[1745892564931,6.08807413,147.83,147.79,0.063]
[1745892565118,24.14451574,147.83,147.79,0.063]
[1745892565940,18.05644161,147.81,147.79,0.063]
[1745892567538,6.08930987,147.8,147.79,0.063]
[1745892568335,24.14575148,147.8,147.79,0.063]
[1745892570012,58.01867503,147.8,147.73,0.063]
[1745892570327,18.05644161,147.78,147.73,18.11944161]
[1745892570939,18.05644161,147.78,147.74,18.05644161]
[1745892572132,6.09054611,147.77,147.74,18.05644161]
[1745892573353,6.09028778,147.78,147.76,18.05644161]
[1745892574332,82.9,147.79,147.76,18.05644161]
[1745892574537,82.9,147.79,147.77,18.05644161]
[1745892574723,18.05644161,147.82,147.78,18.05644161]
[1745892574724,88.98860122,147.82,147.78,18.05644161]
[1745892575033,6.08860122,147.82,147.79,18.05644161]
[1745892576736,24.14465197,147.83,147.79,18.05644161]
[1745892577341,18.05644161,147.81,147.75,6.09137055]
[1745892577518,18.05644161,147.81,147.76,18.05644161]
[1745892577914,6.0889548,147.81,147.77,18.05644161]
[1745892578134,100.95644161,147.83,147.79,18.05644161]
[1745892578444,42.6777867,147.84,147.8,18.05644161]
[1745892578826,42.6777867,147.84,147.79,18.05644161]
[1745892579036,6.08818782,147.83,147.79,18.05644161]
[1745892579917,48.7656086,147.84,147.8,18.05644161]
[1745892581541,48.7656086,147.84,147.79,18.05644161]
[1745892585053,30.70916699,147.84,147.81,18.05644161]
[1745892585352,18.05644161,147.83,147.79,18.05644161]
[1745892585555,11.2849871,147.83,147.79,11.2849871]
[1745892586044,17.37321572,147.83,147.79,11.2849871]
[1745892586648,17.37321572,147.83,147.77,6.09020122]
[1745892586833,6.08822862,147.83,147.8,11.2849871]
[1745892587035,6.08822862,147.83,147.77,6.09020122]
[1745892587265,17.37321572,147.83,147.79,11.2849871]
[1745892587651,6.08822862,147.83,147.79,11.2849871]
[1745892588460,20.20777479,147.84,147.81,11.2849871]
[1745892588652,20.20777479,147.84,147.77,19.02848832]
[1745892588653,6.08642726,147.87,147.83,11.2849871]
[1745892588950,6.08642726,147.87,147.85,11.2849871]
[1745892589158,30.78729129,147.89,147.86,11.2849871]
[1745892589450,20.2859462,147.89,147.86,11.2849871]
[1745892589948,20.2859462,147.89,147.85,11.2849871]
[1745892590120,20.2859462,147.89,147.86,11.2849871]
[1745892590314,84.5076,147.9,147.87,11.2849871]
[1745892590315,90.59288128,147.9,147.87,11.2849871]
[1745892590928,101.87786838,147.9,147.86,11.2849871]
[1745892591938,101.87786838,147.9,147.83,6.08799825]
[1745892591939,89.01528128,147.9,147.84,11.2849871]
[1745892592160,89.01528128,147.9,147.87,11.2849871]
[1745892592637,6.11528128,147.9,147.87,11.2849871]
[1745892593635,11.2849871,147.88,147.83,7.60664186]
[1745892593834,11.2849871,147.87,147.83,11.2849871]
[1745892594254,11.2849871,147.87,147.81,80.9]
[1745892594255,11.2849871,147.88,147.81,80.9]
[1745892594434,11.2849871,147.88,147.84,11.2849871]
[1745892594636,11.2849871,147.89,147.85,11.2849871]
[1745892594836,6.11528128,147.9,147.85,11.2849871]
[1745892595119,11.2849871,147.89,147.85,11.2849871]
[1745892596361,6.08601568,147.88,147.82,6.08838973]
[1745892596541,6.08601568,147.88,147.84,11.2849871]
[1745892598546,6.08601568,147.88,147.85,11.2849871]
[1745892600359,6.08601568,147.88,147.84,11.2849871]
[1745892602286,6.08560416,147.89,147.84,11.2849871]
[1745892602460,17.37059126,147.89,147.84,11.2849871]
[1745892602659,11.2849871,147.88,147.84,11.2849871]
[1745892603446,6.08560416,147.89,147.84,11.2849871]
[1745892603747,17.37059126,147.89,147.84,11.2849871]
[1745892605560,82.93,147.9,147.87,11.2849871]
[1745892605743,0.03,147.9,147.87,11.2849871]
[1745892606061,0.03,147.9,147.84,17.37258758]
[1745892606062,0.03,147.9,147.89,11.2849871]
[1745892606379,0.03,147.9,147.87,11.2849871]
[1745892610244,11.3149871,147.9,147.86,11.2849871]
[1745892610567,11.2849871,147.89,147.85,11.2849871]
[1745892611567,17.40057803,147.9,147.85,11.2849871]
[1745892612868,17.40057803,147.9,147.86,11.2849871]
[1745892613071,6.11559093,147.9,147.86,11.2849871]
[1745892613372,17.40057803,147.9,147.85,6.08713254]
[1745892613554,17.40057803,147.9,147.86,11.2849871]
[1745892614470,6.11559093,147.9,147.86,11.2849871]
[1745892616257,6.11559093,147.9,147.87,11.2849871]
[1745892620377,6.11559093,147.9,147.86,11.2849871]
[1745892620575,11.3149871,147.9,147.86,11.2849871]
[1745892621781,17.40034712,147.9,147.86,11.2849871]
[1745892621971,11.2849871,147.87,147.81,0.14216157]
[1745892622163,11.2849871,147.86,147.82,11.2849871]
[1745892623171,11.2849871,147.87,147.83,11.2849871]
[1745892624286,17.37132276,147.88,147.84,11.2849871]
[1745892624459,100.30052373,147.9,147.85,11.2849871]
[1745892624883,0.03,147.9,147.87,11.2849871]
[1745892625755,0.03,147.9,147.88,11.2849871]
[1745892625959,0.03,147.9,147.89,11.2849871]
[1745892626464,0.03,147.9,147.88,11.2849871]
[1745892630076,0.03,147.9,147.89,11.2849871]
[1745892631077,0.03,147.9,147.89,18.86485208]
[1745892631882,0.03,147.9,147.89,7.57986498]
[1745892632076,0.03,147.9,147.89,18.86485208]
[1745892636991,0.03,147.9,147.89,70.16983918]
[1745892637780,0.03,147.94,147.89,104.03349845]
[1745892638078,0.03,147.94,147.93,11.2849871]
[1745892639299,0.03,147.94,147.93,17.36894572]
[1745892642173,0.03,147.94,147.92,11.2849871]
[1745892645500,11.2849871,147.93,147.86,6.3549]
[1745892645806,11.2849871,147.9,147.85,25.3049871]
[1745892646299,84.5062,147.93,147.86,11.2849871]
[1745892646485,11.2849871,147.9,147.86,11.2849871]
[1745892647587,17.37002243,147.91,147.87,11.2849871]
[1745892647787,84.5062,147.93,147.89,11.2849871]
[1745892648088,12.8911871,147.93,147.89,11.2849871]
[1745892650006,11.2849871,147.9,147.85,80.9]
[1745892650188,11.2849871,147.88,147.84,11.2849871]
[1745892650394,11.2849871,147.89,147.84,11.2849871]
[1745892650601,11.2849871,147.89,147.85,11.2849871]
[1745892651203,11.2849871,147.9,147.86,11.2849871]
[1745892652516,11.2849871,147.9,147.85,17.3721713]
[1745892653206,88.98504381,147.91,147.86,11.2849871]
[1745892653413,11.2849871,147.9,147.86,11.2849871]
[1745892654504,6.08452937,147.92,147.86,17.37176077]
[1745892654704,17.36951647,147.92,147.87,11.2849871]
[1745892654882,11.2849871,147.92,147.87,11.2849871]
[1745892655084,11.2849871,147.9,147.86,11.2849871]
[1745892655281,18.64964886,147.86,147.8,0.063]
[1745892655495,11.2849871,147.81,147.8,0.063]
[1745892656099,17.373885,147.81,147.8,0.063]
[1745892657101,6.0888979,147.81,147.8,0.063]
[1745892657334,17.373885,147.81,147.8,0.063]
[1745892657607,24.1497806,147.81,147.8,0.063]
[1745892659008,18.0608827,147.82,147.8,0.063]
[1745892659217,18.0608827,147.81,147.8,0.063]
[1745892660920,24.1497806,147.81,147.8,0.063]
[1745892668013,6.08725059,147.85,147.8,18.1238827]
[1745892668198,18.0608827,147.85,147.81,18.0608827]
[1745892668395,18.0608827,147.83,147.8,0.063]
[1745892668603,18.0608827,147.82,147.8,0.063]
[1745892669515,18.0608827,147.81,147.8,0.063]
[1745892669719,18.0608827,147.82,147.8,0.063]
[1745892670821,18.0608827,147.81,147.8,0.063]
[1745892671607,18.0608827,147.82,147.8,0.063]
[1745892672225,18.0608827,147.81,147.8,0.063]
[1745892673427,24.1497806,147.81,147.8,0.063]
[1745892673808,8.1482,147.77,147.74,0.063]
[1745892674124,38.79181043,147.73,147.59,18.0608827]
[1745892674328,18.64964886,147.73,147.65,18.0608827]
[1745892674534,18.0608827,147.73,147.68,18.0608827]
[1745892674828,18.0608827,147.78,147.69,1.35419788]
[1745892675001,66.9889098,147.79,147.72,18.0608827]
[1745892675198,66.9889098,147.79,147.7,0.14216157]
[1745892675199,18.0608827,147.76,147.7,18.20304427]
[1745892675403,18.0608827,147.75,147.7,18.20304427]
[1745892675899,18.0608827,147.73,147.68,32.1008827]
[1745892676122,6.09147862,147.75,147.68,14.04]
[1745892676123,18.0608827,147.7,147.68,14.04]
[1745892676311,18.0608827,147.7,147.63,6.577]
[1745892676312,18.0608827,147.69,147.64,32.1008827]
[1745892676636,18.0608827,147.68,147.64,14.04]
[1745892677020,18.0608827,147.69,147.64,32.1008827]
[1745892677208,18.0608827,147.7,147.65,18.0608827]
[1745892677423,18.0608827,147.69,147.64,32.1008827]
[1745892677732,6.09425785,147.68,147.65,0.063]
[1745892677932,18.0608827,147.69,147.65,0.063]
[1745892678111,24.15463905,147.7,147.65,18.1238827]
[1745892678807,18.0608827,147.69,147.65,18.1238827]
[1745892679507,24.15463905,147.7,147.65,18.1238827]
[1745892681220,18.0608827,147.69,147.65,0.063]
[1745892681534,18.0608827,147.7,147.65,18.1238827]
[1745892681733,6.09219522,147.73,147.69,18.0608827]
[1745892681937,18.0608827,147.75,147.7,18.0608827]
[1745892682144,6.09051391,147.78,147.73,18.0608827]
[1745892682320,24.15139661,147.78,147.74,18.0608827]
[1745892682629,71.53323902,147.79,147.76,18.0608827]
[1745892682808,65.4435098,147.79,147.77,18.0608827]
[1745892683329,65.4435098,147.79,147.78,18.0608827]
[1745892684037,6.08892738,147.81,147.78,18.0608827]
[1745892684548,6.08892738,147.81,147.77,18.0608827]
[1745892685037,6.08892738,147.81,147.78,18.0608827]
[1745892685336,24.14936869,147.82,147.78,18.0608827]
[1745892685521,24.14936869,147.82,147.77,18.0608827]
[1745892686020,6.08848599,147.82,147.78,18.0608827]
[1745892686234,6.08848599,147.82,147.75,6.09127143]
[1745892686235,18.0608827,147.81,147.75,0.14216157]
[1745892686610,24.14936869,147.82,147.78,18.0608827]
[1745892687039,6.08848599,147.82,147.78,18.0608827]
[1745892687208,24.14904002,147.83,147.79,18.0608827]
[1745892687409,24.14904002,147.83,147.78,18.0608827]
[1745892688330,6.08815732,147.83,147.79,18.0608827]
[1745892688630,24.14904002,147.83,147.79,18.0608827]
[1745892691950,24.14904002,147.83,147.76,6.09095831]
[1745892692124,24.14904002,147.83,147.78,18.0608827]
[1745892692520,6.08815732,147.83,147.79,18.0608827]
[1745892692739,18.0608827,147.85,147.81,18.0608827]
[1745892692946,24.1477216,147.86,147.82,18.0608827]
[1745892693116,7.66586925,147.87,147.83,18.0608827]
[1745892693313,7.66586925,147.87,147.84,18.0608827]
[1745892693535,25.72675195,147.87,147.83,18.0608827]
[1745892693721,18.0608827,147.86,147.82,18.0608827]
[1745892694327,24.1480905,147.86,147.82,18.0608827]
[1745892694725,54.34038716,147.91,147.82,18.0608827]
[1745892694726,6.08436992,147.92,147.85,18.0608827]
[1745892695041,6.08436992,147.92,147.89,18.0608827]
[1745892695239,24.14525262,147.92,147.88,18.0608827]
[1745892699819,6.08405174,147.93,147.9,18.0608827]
[1745892700538,24.14493444,147.93,147.89,18.0608827]
[1745892700840,6.08405174,147.93,147.9,18.0608827]
[1745892701341,24.14493444,147.93,147.89,18.0608827]
[1745892701550,18.0608827,147.92,147.86,0.14216157]
[1745892701732,0.03,147.94,147.91,18.0608827]
[1745892701930,18.0908827,147.94,147.87,0.14216157]
[1745892702134,18.0908827,147.94,147.9,18.0608827]
[1745892702945,24.17456623,147.94,147.9,18.0608827]
[1745892703145,24.17456623,147.94,147.89,18.0608827]
[1745892704636,24.17456623,147.94,147.9,18.0608827]
[1745892704941,0.03,147.94,147.92,18.0608827]
[1745892705157,0.03,147.94,147.93,18.0608827]
[1745892706747,0.03,147.94,147.93,24.14484132]
[1745892707047,0.03,147.94,147.93,18.0608827]
[1745892707240,0.03,147.94,147.92,6.08434181]
[1745892707544,0.03,147.94,147.93,18.0608827]
[1745892707739,0.03,147.94,147.93,19.41257243]
[1745892707943,0.03,147.94,147.93,19.554734]
[1745892709251,0.03,147.94,147.93,25.63869262]
[1745892710149,0.03,147.94,147.93,19.554734]
[1745892710448,0.03,147.94,147.93,25.63869262]
[1745892711357,0.03,147.94,147.93,19.41257243]
[1745892712562,0.03,147.94,147.93,125.18834148]
[1745892712728,0.03,147.94,147.93,126.84514148]
[1745892719953,0.03,147.94,147.93,125.18834148]
[1745892720259,0.03,147.94,147.93,100.454734]
[1745892721680,0.03,147.94,147.93,80.9]
[1745892721842,0.03,147.94,147.93,98.9608827]
[1745892722261,0.03,147.94,147.92,18.0608827]
[1745892722453,0.03,147.94,147.91,18.0608827]
[1745892723046,0.03,147.94,147.93,18.20304427]
[1745892723462,0.03,147.94,147.93,18.0608827]
[1745892723955,0.03,147.94,147.93,24.28700289]
[1745892724159,0.03,147.94,147.93,25.63868757]
[1745892724763,0.03,147.94,147.93,18.0608827]
[1745892726268,0.03,147.94,147.89,95.12]
[1745892726446,18.0908827,147.94,147.9,18.0608827]
[1745892726766,19.7569827,147.94,147.9,18.0608827]
[1745892727656,0.03,147.94,147.93,18.0608827]
[1745892728041,0.03,147.94,147.93,24.14484132]
[1745892728247,0.03,147.94,147.93,42.93665175]
[1745892728461,0.03,147.94,147.93,123.83665175]
[1745892728648,0.03,147.95,147.94,62.85269313]
[1745892728958,0.03,147.96,147.94,78.38391321]
[1745892729168,0.03,147.96,147.95,36.85269313]
[1745892729370,0.03,147.96,147.95,54.91357583]
[1745892729961,0.03,147.96,147.95,135.81357583]
[1745892730160,0.03,147.96,147.95,141.89671202]
[1745892730369,0.03,147.96,147.95,123.83582932]
[1745892730560,0.03,147.96,147.95,125.18696797]
[1745892730945,0.03,147.96,147.95,106.53731911]
[1745892748513,18.0908827,147.96,147.91,80.9]
[1745892748705,18.0908827,147.96,147.92,18.0608827]
[1745892748899,0.03,147.96,147.93,18.0608827]
[1745892749508,0.03,147.96,147.93,11.26346792]
[1745892751718,0.03,147.96,147.93,18.02166121]